[Event "World Junior U20 Open 2018"]
[Site "Gebze"]
[Date "2018.09.10"]
[Round "6.47"]
[White "Tarlabasi, Emirhan"]
[Black "Schitco, Ivan"]
[Result "0-1"]
[ECO "D30"]
[WhiteElo "2193"]
[BlackElo "2358"]
[Annotator "ChessBase"]
[PlyCount "186"]
[EventDate "2018.09.05"]
[EventType "swiss"]
[EventCountry "TUR"]
[SourceTitle "playchess.com"]
[Source "ChessBase"]
[SourceQuality "1"]
[TimeControl "40/5400+30:1800+30"]

1. d4 Nf6 2. c4 e6 3. Nf3 d5 4. e3 Bd6 5. Bd3 O-O 6. O-O dxc4 7. Bxc4 a6 8. Bd3 Nbd7 9. Nbd2 c5 10. Nc4 Be7 11. a4 b6 12. b3 Bb7 13. Bb2 cxd4 14. exd4 Rc8 15. Ne3 Rc7 16. Qe2 Qa8 17. Nd2 Nd5 18. Nxd5 Bxd5 19. f3 Bf6 20. Nc4 Rd8 {[%emt 1:08:00]} 21. Be4 {[%emt 1:14:30]} Qa7 {[%emt 0:00:30]} 22. Rfd1 {[%emt 0:00:30]} Nf8 {[%emt 0:00:30]} 23. Bxd5 {[%emt 0:00:30]} exd5 {[%emt 0:00:30]} 24. Ne3 {[%emt 0:00:30]} Ne6 {[%emt 0:06:30]} 25. g3 {[%emt 0:08:17]} Re7 {[%emt 0:10:31]} 26. Qd3 {[%emt 0:02:35]} g6 {[%emt 0:01:42]} 27. Rd2 {[%emt 0:07:57]} h5 {[%emt 0:02:00]} 28. f4 {[%emt 0:02:06]} Qd7 {[%emt 0:02:56]} 29. Ng2 {[%emt 0:02:52]} h4 {[%emt 0:01:42]} 30. Qf3 {[%emt 0:02:40]} h3 {[%emt 0:04:38]} 31. Ne3 {[%emt 0:00:30]} Bg7 {[%emt 0:00:30]} 32. Ng4 {[%emt 0:00:30]} f5 {[%emt 0:02:35]} 33. Ne5 {[%emt 0:02:03]} Bxe5 {[%emt 0:00:18]} 34. dxe5 {[%emt 0:00:00]} Nc5 {[%emt 0:02:04]} 35. Bd4 {[%emt 0:01:27]} Ne4 {[%emt 0:01:02]} 36. Rc2 {[%emt 0:00:30]} Rc8 {[%emt 0:00:00]} 37. Rac1 {[%emt 0:00:14]} Rxc2 {[%emt 0:00:28]} 38. Rxc2 {[%emt 0:00:30]} Re6 {[%emt 0:00:06]} 39. Qd1 {[%emt 0:00:10]} Rc6 {[%emt 0:00:41]} 40. Qc1 {[%emt 0:00:00]} Rxc2 {[%emt 0:00:00]} 41. Qxc2 {[%emt 0:01:09]} b5 {[%emt 0:04:17]} 42. axb5 {[%emt 0:12:21]} axb5 {[%emt 0:00:30]} 43. b4 {[%emt 0:00:25]} Kf7 {[%emt 0:03:30]} 44. Kf1 {[%emt 0:05:56]} g5 {[%emt 0:01:30]} 45. Ke2 {[%emt 0:04:52]} Kg6 {[%emt 0:03:30]} 46. Kf3 {[%emt 0:04:48]} Kh5 {[%emt 0:03:43]} 47. fxg5 {[%emt 0:03:11]} Nxg5+ {[%emt 0:00:51]} 48. Ke3 {[%emt 0:00:15]} Ne4 {[%emt 0:00:44]} 49. Kd3 {[%emt 0:01:27]} Kg6 {[%emt 0:09:17]} 50. Qc1 {[%emt 0:00:45]} Ng5 {[%emt 0:01:41]} 51. Qc5 {[%emt 0:01:21]} f4 {[%emt 0:00:51]} 52. Qb6+ {[%emt 0:00:33]} Kh5 {[%emt 0:00:16]} 53. gxf4 {[%emt 0:01:02]} Qf5+ {[%emt 0:00:30]} 54. Kc3 {[%emt 0:00:00]} Qxf4 {[%emt 0:00:51]} 55. e6 {[%emt 0:00:32]} Qc1+ {[%emt 0:03:10]} 56. Kb3 {[%emt 0:00:18]} Qd1+ {[%emt 0:01:32]} 57. Kb2 {[%emt 0:00:40]} Qe2+ {[%emt 0:00:10]} 58. Ka3 {[%emt 0:00:33]} Nxe6 {[%emt 0:00:13]} 59. Bb2 {[%emt 0:00:20]} d4 {[%emt 0:00:54]} 60. Qc6 {[%emt 0:00:34]} Kg4 {[%emt 0:00:39]} 61. Qe8 {[%emt 0:00:23]} Qd3+ {[%emt 0:03:19]} 62. Ka2 {[%emt 0:00:01]} Qc4+ {[%emt 0:00:18]} 63. Ka1 {[%emt 0:00:32]} Kf4 {[%emt 0:00:58]} 64. Qg6 {[%emt 0:01:08]} Qf1+ {[%emt 0:00:26]} 65. Ka2 {[%emt 0:00:37]} Qc4+ {[%emt 0:00:01]} 66. Ka1 {[%emt 0:00:11]} Qf1+ {[%emt 0:01:05]} 67. Ka2 {[%emt 0:00:04]} Ke5 {[%emt 0:00:00]} 68. Qh5+ {[%emt 0:01:02]} Qf5 {[%emt 0:00:07]} 69. Qe2+ {[%emt 0:00:52]} Kd6 {[%emt 0:00:05]} 70. Ka1 {[%emt 0:00:15]} d3 {[%emt 0:00:55]} 71. Qe3 {[%emt 0:00:18]} Kd5 {[%emt 0:00:20]} 72. Ka2 {[%emt 0:00:42]} Kd6 {[%emt 0:01:58]} 73. Qb6+ {[%emt 0:00:20]} Kd7 {[%emt 0:00:12]} 74. Qe3 {[%emt 0:00:27]} Nf4 {[%emt 0:00:27]} 75. Qa7+ {[%emt 0:00:39]} Ke6 {[%emt 0:00:09]} 76. Qb6+ {[%emt 0:00:30]} Kf7 {[%emt 0:00:10]} 77. Qc7+ {[%emt 0:00:34]} Kg6 {[%emt 0:00:15]} 78. Qg7+ {[%emt 0:00:48]} Kh5 {[%emt 0:00:02]} 79. Qh8+ {[%emt 0:00:09]} Kg4 {[%emt 0:00:09]} 80. Qg7+ {[%emt 0:00:31]} Qg6 {[%emt 0:00:24]} 81. Qd4 {[%emt 0:00:27]} Qe6+ {[%emt 0:00:20]} 82. Kb1 {[%emt 0:00:00]} Kf3 {[%emt 0:00:00]} 83. Bc1 {[%emt 0:00:24]} Qe4 {[%emt 0:00:00]} 84. Qc3 {[%emt 0:00:30]} Ne2 {[%emt 0:00:00]} 85. Qf6+ {[%emt 0:00:30]} Kg2 {[%emt 0:00:00]} 86. Bd2 {[%emt 0:00:30]} Kxh2 {[%emt 0:00:10]} 87. Qf2+ {[%emt 0:00:30]} Qg2 {[%emt 0:00:30]} 88. Qf5 {[%emt 0:00:30]} Ng3 {[%emt 0:00:30]} 89. Qg5 {[%emt 0:00:30]} Ne4 {[%emt 0:00:30]} 90. Qf4+ {[%emt 0:00:30]} Kh1 {[%emt 0:00:30]} 91. Be3 {[%emt 0:00:30]} d2 {[%emt 0:00:30]} 92. Kc2 {[%emt 0:00:30]} d1=Q+ {[%emt 0:00:30]} 93. Kxd1 {[%emt 0:00:30]} Nc3+ {[%emt 0:00:30]} 0-1

[Event "World Junior U20 Open 2018"]
[Site "Gebze"]
[Date "2018.09.10"]
[Round "6.48"]
[White "Aydincelebi, Kagan"]
[Black "Murphy, Conor E"]
[Result "0-1"]
[ECO "C63"]
[WhiteElo "2060"]
[BlackElo "2357"]
[Annotator "ChessBase"]
[PlyCount "109"]
[EventDate "2018.09.05"]
[EventType "swiss"]
[EventCountry "TUR"]
[SourceTitle "playchess.com"]
[Source "ChessBase"]
[SourceQuality "1"]
[TimeControl "40/5400+30:1800+30"]

1. e4 e5 2. Nf3 Nc6 3. Bb5 f5 4. Nc3 fxe4 5. Nxe4 Nf6 6. Nxf6+ Qxf6 7. Qe2 Be7 8. Bxc6 bxc6 9. Qxe5 d6 10. Qxf6 Bxf6 11. d4 Bg4 12. Be3 Bxf3 13. gxf3 O-O 14. Rd1 Bh4 15. Ke2 Rf5 16. Rhg1 Raf8 17. Rg4 Be7 18. Rd3 Ra5 19. a3 Rb8 20. b4 Rh5 21. Rc3 a5 22. Rxc6 Bd8 23. bxa5 Rxa5 24. Bh6 {[%emt 1:29:47]} Rh5 {[%emt 1:32:20]} 25. Bxg7 {[%emt 0:02:52]} Kf7 {[%emt 0:00:43]} 26. d5 {[%emt 0:00:30]} Rxd5 {[%emt 0:00:30]} 27. Bc3 {[%emt 0:00:30]} Rb1 {[%emt 0:00:30]} 28. Rcc4 {[%emt 0:00:30]} Rc1 {[%emt 0:00:30]} 29. Bb2 {[%emt 0:00:30]} Rb1 {[%emt 0:00:30]} 30. Rg7+ {[%emt 0:00:30]} Ke6 {[%emt 0:00:30]} 31. Re4+ {[%emt 0:00:30]} Kf5 {[%emt 0:00:30]} 32. Bd4 {[%emt 0:00:30]} c5 {[%emt 0:00:30]} 33. Rf7+ {[%emt 0:00:30]} Kg6 {[%emt 0:00:30]} 34. Rg7+ {[%emt 0:00:30]} Kf5 {[%emt 0:00:30]} 35. Rf7+ {[%emt 0:00:30]} Kg6 {[%emt 0:00:30]} 36. Rf8 {[%emt 0:00:30]} Ba5 {[%emt 0:00:30]} 37. Rg4+ {[%emt 0:00:30]} Kh5 {[%emt 0:00:30]} 38. Rf7 {[%emt 0:00:30]} Re1+ {[%emt 0:00:30]} 39. Kd3 {[%emt 0:00:00]} Rxd4+ {[%emt 0:00:00]} 40. Rxd4 {[%emt 0:00:00]} Rd1+ {[%emt 0:00:00]} 41. Kc4 {[%emt 0:08:21]} Rxd4+ {[%emt 0:00:57]} 42. Kb5 {[%emt 0:01:30]} Kg6 {[%emt 0:00:30]} 43. Rd7 {[%emt 0:04:30]} Bd2 {[%emt 0:00:30]} 44. a4 {[%emt 0:00:30]} Rb4+ {[%emt 0:00:00]} 45. Kc6 {[%emt 0:01:30]} Bf4 {[%emt 0:00:00]} 46. a5 {[%emt 0:01:30]} Bxh2 {[%emt 0:00:30]} 47. a6 {[%emt 0:01:30]} h5 {[%emt 0:00:30]} 48. a7 {[%emt 0:01:30]} h4 {[%emt 0:00:00]} 49. Rd8 {[%emt 0:00:30]} Ra4 {[%emt 0:00:00]} 50. Kb7 {[%emt 0:01:30]} Be5 {[%emt 0:04:30]} 51. Rg8+ {[%emt 0:01:30]} Kh5 {[%emt 0:07:30]} 52. Rg4 {[%emt 0:01:30]} Rxa7+ {[%emt 0:00:00]} 53. Kxa7 {[%emt 0:00:30]} h3 {[%emt 0:00:00]} 54. Rg1 {[%emt 0:00:30]} h2 {[%emt 0:00:00]} 55. Rd1 {[%emt 0:00:00]} 0-1

[Event "World Junior U20 Open 2018"]
[Site "Gebze"]
[Date "2018.09.10"]
[Round "6.49"]
[White "Liyanage, Ranindu Dilshan"]
[Black "Schekachikhin, Maksim"]
[Result "0-1"]
[ECO "B47"]
[WhiteElo "1989"]
[BlackElo "2356"]
[Annotator "NA"]
[PlyCount "72"]
[EventDate "2018.09.05"]
[EventType "swiss"]
[EventCountry "TUR"]
[SourceTitle "playchess.com"]
[Source "ChessBase"]
[SourceQuality "1"]
[TimeControl "40/5400+30:1800+30"]

1. e4 {[%emt 0:00:30]} c5 {[%emt 0:00:30]} 2. Nf3 {[%emt 0:00:30]} e6 {[%emt 0:00:00]} 3. d4 {[%emt 0:00:00]} cxd4 {[%emt 0:00:00]} 4. Nxd4 {[%emt 0:00:00]} Nc6 {[%emt 0:00:30]} 5. Nc3 {[%emt 0:00:00]} Qc7 {[%emt 0:00:30]} 6. g3 {[%emt 0:00:00]} a6 {[%emt 0:00:00]} 7. Bg2 {[%emt 0:00:30]} Nf6 {[%emt 0:00:00]} 8. O-O {[%emt 0:00:00]} h5 {[%emt 0:00:30] B47: Sicilian: Taimanov: 5 Nc3 Qc7 6 f4, 6 g3 and 6 Be2} 9. Nf3 {[%emt 0:18:30]} Ng4 {[%emt 0:01:00]} 10. Bf4 {[%emt 0:26:30]} d6 {[%emt 0:01:30] LiveBook: 5 Partien} 11. h3 $146 {[%emt 0:04:30]} ({Predecessor:} 11. Bg5 Nge5 12. a4 Bd7 13. h3 {½-½ (13) Morozevich,A (2739)-Vitiugov,N (2719) Tromsoe 2013}) 11... Nge5 {[%emt 0:00:30]} 12. Nd2 {[%emt 0:01:30]} Be7 {[%emt 0:05:30]} 13. Be3 {[%emt 0:01:30]} Na5 {[%emt 0:04:30]} 14. Bd4 {[%emt 0:04:30]} Bf6 {[%emt 0:07:30]} 15. Na4 {[%emt 0:04:30]} Nd7 {[%emt 0:02:30]} 16. Bxf6 {[%emt 0:01:30]} Nxf6 {[%emt 0:01:30]} 17. c4 {[%emt 0:00:30]} O-O {[%emt 0:06:30]} 18. Rc1 {[%emt 0:03:30]} Nc6 {[%emt 0:06:30]} 19. c5 {[%emt 0:05:30]} dxc5 {[%emt 0:04:30]} 20. Rxc5 {[%emt 0:02:30]} e5 {[%emt 0:56:00]} 21. Qc2 {[%emt 1:26:29]} Be6 {[%emt 0:00:30]} 22. Nf3 $15 {[%emt 0:00:30]} Nd7 {[%emt 0:00:30]} 23. Rc3 {[%emt 0:00:30]} f6 {[%emt 0:00:30]} 24. Nh4 {[%emt 0:02:13]} Rfd8 {[%emt 0:09:30]} 25. Nf5 {[%emt 0:01:21]} Qa5 {[%emt 0:05:30]} 26. Ra3 {[%emt 0:00:52]} Nd4 {[%emt 0:05:30]} 27. Qd1 {[%emt 0:01:36]} Nxf5 {[%emt 0:13:13]} 28. exf5 {[%emt 0:00:05]} Bf7 {[%emt 0:03:49]} 29. Bxb7 {[%emt 0:01:14]} Rab8 {[%emt 0:01:15]} 30. Qf3 {[%emt 0:00:35]} Nb6 {[%emt 0:02:55]} 31. Nxb6 {[%emt 0:00:30]} Qxb6 {[%emt 0:00:02]} 32. Be4 {[%emt 0:04:32]} Qxb2 {[%emt 0:01:05]} 33. Rb1 {[%emt 0:02:09]} Qxb1+ {[%emt 0:00:30]} 34. Kh2 {[%emt 0:02:13]} Qb6 {[%emt 0:01:06]} 35. Qe2 {[%emt 0:00:30]} a5 {[%emt 0:00:24]} 36. Rc3 {[%emt 0:00:18]} Rbc8 {[%emt 0:00:13]} 0-1

[Event "World Junior U20 Open 2018"]
[Site "Gebze"]
[Date "2018.09.10"]
[Round "6.50"]
[White "Arcuti, Davide"]
[Black "Nyambileg, Erdene-Ochir"]
[Result "0-1"]
[ECO "E81"]
[WhiteElo "2356"]
[BlackElo "1798"]
[Annotator "NA"]
[PlyCount "160"]
[EventDate "2018.09.05"]
[EventType "swiss"]
[EventCountry "TUR"]
[SourceTitle "playchess.com"]
[Source "ChessBase"]
[SourceQuality "1"]
[TimeControl "40/5400+30:1800+30"]

1. d4 {[%emt 0:00:30]} Nf6 {[%emt 0:00:30]} 2. c4 {[%emt 0:00:00]} g6 {[%emt 0:00:30]} 3. Nc3 {[%emt 0:00:00]} Bg7 {[%emt 0:00:00]} 4. e4 {[%emt 0:00:30]} d6 {[%emt 0:00:00]} 5. f3 {[%emt 0:00:30]} O-O {[%emt 0:00:30]} 6. Be3 {[%emt 0:00:00]} c5 {[%emt 0:00:30]} 7. d5 {[%emt 0:00:30]} Na6 {[%emt 0:06:30]} 8. Qd2 {[%emt 0:03:00]} Nc7 {[%emt 0:06:30]} 9. Bd3 {[%emt 0:09:30] E81: King's Indian: Sämisch: 6th move deviations (including 6 Be3 c6)} (9. Nge2 a6 10. a4 b6 11. g4 e6 12. Ng3 exd5 13. cxd5 Re8 14. Be2 Bb7 15. Bg5 Qd7 16. h4 b5 {½-½ (50) Mozharov,M (2425)-Reutsky,S (2353) Moscow 2007}) 9... a6 {[%emt 0:02:30]} 10. a4 {[%emt 0:00:30]} Rb8 {[%emt 0:00:30]} 11. a5 $146 {[%emt 0:00:30]} ({Predecessor:} 11. Nge2 Bd7 12. O-O b5 13. b3 b4 14. Na2 Nh5 15. Rad1 f5 16. exf5 gxf5 17. Nf4 Qe8 18. Nc1 Kh8 19. Nce2 Be5 20. Nxh5 Qxh5 {1-0 (44) Borsuk,K (2263)-Artemchuk,T (2214) Donetsk 2007}) 11... b5 {[%emt 0:00:30]} 12. axb6 {[%emt 0:00:30]} Rxb6 {[%emt 0:06:30]} 13. Nge2 {[%emt 0:03:30]} e5 {[%emt 0:07:30]} 14. g4 {[%emt 0:19:30]} (14. O-O $16) 14... Bd7 {[%emt 0:05:30]} 15. Ng3 {[%emt 0:05:30]} Qb8 {[%emt 0:03:30]} 16. Ra2 {[%emt 0:05:30]} Qb7 {[%emt 0:05:30]} 17. g5 {[%emt 0:08:30]} Nfe8 {[%emt 0:09:30]} 18. h4 {[%emt 0:00:30]} a5 {[%emt 1:16:00]} 19. h5 {[%emt 1:28:08]} Na6 {[%emt 0:05:43]} 20. Bb1 {[%emt 0:00:30]} Rb3 {[%emt 0:00:30]} 21. Rxa5 {[%emt 0:00:30]} Rxb2 {[%emt 0:00:30]} 22. Qc1 {[%emt 0:00:30]} Nec7 {[%emt 0:00:30]} 23. O-O {[%emt 0:00:30]} Qb4 {[%emt 0:00:30]} 24. Ra1 {[%emt 0:00:30]} Rb8 {[%emt 0:00:30]} 25. Bd3 {[%emt 0:00:30]} Qb3 {[%emt 0:00:30]} 26. Rf2 {[%emt 0:00:30]} Rxf2 {[%emt 0:00:30]} 27. Bxf2 {[%emt 0:00:30]} Qb7 {[%emt 0:00:30]} 28. Bf1 {[%emt 0:00:30]} Nb4 {[%emt 0:02:39]} 29. Kg2 {[%emt 0:03:43]} Qc8 {[%emt 0:01:39]} 30. Ra7 {[%emt 0:01:58]} Ra8 {[%emt 0:02:08]} 31. Rxa8 {[%emt 0:00:39]} Qxa8 {[%emt 0:00:14]} 32. Qb2 {[%emt 0:02:04]} Qd8 {[%emt 0:01:12]} 33. Be3 {[%emt 0:00:30]} f6 {[%emt 0:00:30]} 34. gxf6 {[%emt 0:00:30]} Qxf6 {[%emt 0:01:59]} 35. hxg6 {[%emt 0:04:04]} hxg6 {[%emt 0:00:44]} 36. Qf2 {[%emt 0:01:02]} Qh4 {[%emt 0:02:49]} 37. Kg1 {[%emt 0:00:30]} Bh6 {[%emt 0:00:31]} 38. Bxh6 {[%emt 0:00:41]} Qxh6 {[%emt 0:00:30]} 39. Nb5 {[%emt 0:00:13]} Ne8 {[%emt 0:00:22]} 40. Qg2 {[%emt 0:00:00]} Kf7 {[%emt 0:00:00]} 41. Nh1 {[%emt 0:05:58]} Ke7 {[%emt 0:04:30]} 42. Nf2 {[%emt 0:00:30]} Nf6 {[%emt 0:00:30]} 43. Qg3 {[%emt 0:05:30]} Nc2 {[%emt 0:02:30]} 44. Nd3 {[%emt 0:02:16]} Qe3+ {[%emt 0:01:30]} 45. Qf2 {[%emt 0:00:15]} Qg5+ $15 {[%emt 0:02:30]} 46. Qg2 {[%emt 0:04:01]} Qxg2+ {[%emt 0:00:30]} 47. Bxg2 {[%emt 0:00:07]} Ne3 {[%emt 0:01:30]} 48. Na3 {[%emt 0:00:21]} g5 {[%emt 0:00:30]} 49. Kf2 {[%emt 0:00:43]} Nd1+ {[%emt 0:01:30]} 50. Ke2 {[%emt 0:01:23]} Nc3+ {[%emt 0:00:30]} 51. Kd2 {[%emt 0:00:22]} Na4 {[%emt 0:00:30]} 52. Ke3 {[%emt 0:01:26]} Nh5 {[%emt 0:00:00]} 53. Bf1 {[%emt 0:01:09]} Nb6 {[%emt 0:01:00]} 54. Nf2 {[%emt 0:00:42]} Nf4 {[%emt 0:00:30]} 55. Ng4 {[%emt 0:02:03]} Bxg4 {[%emt 0:02:30]} 56. fxg4 {[%emt 0:00:30]} Kd7 {[%emt 0:00:30]} 57. Kd2 {[%emt 0:00:30]} Ke7 {[%emt 0:00:30]} 58. Ke3 {[%emt 0:00:30]} Nd7 {[%emt 0:00:30]} 59. Kf3 {[%emt 0:00:30]} Nf6 {[%emt 0:00:30]} 60. Nc2 {[%emt 0:00:30]} Ng6 {[%emt 0:03:30]} 61. Bd3 {[%emt 0:00:36]} Kd7 {[%emt 0:00:30]} 62. Ne3 {[%emt 0:04:24]} Nh4+ {[%emt 0:01:30]} 63. Kg3 {[%emt 0:00:01]} Kc7 {[%emt 0:00:30]} 64. Nd1 {[%emt 0:00:37]} Kb6 {[%emt 0:00:30]} 65. Nf2 {[%emt 0:00:33]} Ng6 {[%emt 0:00:00]} 66. Nh3 {[%emt 0:03:44]} Nf4 {[%emt 0:01:00]} 67. Nxg5 {[%emt 0:00:10]} Nxd3 {[%emt 0:00:30]} 68. Kf3 {[%emt 0:00:38]} Nb2 {[%emt 0:00:30]} 69. Nf7 {[%emt 0:00:00]} Nxc4 {[%emt 0:00:00]} 70. g5 {[%emt 0:00:00]} Ne8 {[%emt 0:00:00]} 71. g6 {[%emt 0:00:00]} Kc7 {[%emt 0:00:30]} 72. Nh6 {[%emt 0:00:10]} Nd2+ {[%emt 0:01:30]} 73. Ke3 {[%emt 0:00:19]} Nc4+ {[%emt 0:01:30]} 74. Kd3 {[%emt 0:00:34]} Nb6 {[%emt 0:00:30]} 75. Nf5 {[%emt 0:00:36]} Nd7 {[%emt 0:00:00]} 76. Kc4 {[%emt 0:00:16]} Ndf6 {[%emt 0:00:00]} 77. g7 {[%emt 0:00:04]} Kb6 {[%emt 0:00:30]} 78. Kd3 {[%emt 0:00:48]} Kb5 {[%emt 0:00:00]} 79. Ke3 {[%emt 0:00:46]} c4 {[%emt 0:00:00]} 80. Ke2 {[%emt 0:00:00]} Kb4 {[%emt 0:00:30]} 0-1

[Event "World Junior U20 Open 2018"]
[Site "Gebze"]
[Date "2018.09.10"]
[Round "6.51"]
[White "Ozsakallioglu, Okan"]
[Black "Sawlin, Leonid"]
[Result "0-1"]
[ECO "B06"]
[WhiteElo "1955"]
[BlackElo "2355"]
[Annotator "NA"]
[PlyCount "96"]
[EventDate "2018.09.05"]
[EventType "swiss"]
[EventCountry "TUR"]
[SourceTitle "playchess.com"]
[Source "ChessBase"]
[SourceQuality "1"]
[TimeControl "40/5400+30:1800+30"]

1. e4 {[%emt 0:00:30]} g6 {[%emt 0:02:30]} 2. d4 {[%emt 0:00:30]} Bg7 {[%emt 0:00:30]} 3. Nc3 {[%emt 0:00:00]} d6 {[%emt 0:00:30]} 4. f4 {[%emt 0:00:00]} a6 {[%emt 0:00:30]} 5. Nf3 {[%emt 0:00:30]} b5 {[%emt 0:00:30]} 6. Bd3 {[%emt 0:00:00]} Nd7 {[%emt 0:00:00]} 7. e5 {[%emt 0:00:00]} c5 {[%emt 0:00:00] B06: Moderne Verteidigung} 8. Be4 {[%emt 0:00:30]} Rb8 {[%emt 0:00:00]} 9. O-O {[%emt 0:00:00]} (9. Be3 b4 10. Ne2 Nh6 11. dxc5 Nxc5 12. Bxc5 dxc5 13. Bc6+ Bd7 14. Qd5 Rc8 15. Bxd7+ Qxd7 16. Qxd7+ Kxd7 {1-0 (41) Yu,Y (2760)-Adhiban,B (2655) chess.com INT 2018}) 9... b4 {[%emt 0:08:00]} 10. Ne2 {[%emt 0:04:00]} Qc7 {[%emt 0:00:30]} 11. c3 {[%emt 0:01:30]} Nh6 {[%emt 0:00:30]} 12. h3 {[%emt 0:01:30]} O-O {[%emt 0:01:30]} 13. Be3 {[%emt 0:00:00]} a5 {[%emt 0:04:30]} 14. Qc1 $146 {[%emt 0:00:00]} ({Vorgänger:} 14. Qe1 Ba6 15. e6 fxe6 {0-1 (25) Tronenkovs,V (2305)-Ladva,O (2522) Tallinn 2018}) 14... Ba6 {[%emt 0:00:30]} 15. Rf2 {[%emt 0:00:00]} Kh8 {[%emt 0:00:30]} 16. g4 {[%emt 0:09:00]} Ng8 {[%emt 0:09:30]} ({Better is} 16... f5 $11 17. exf6 Nxf6) 17. Ng5 {[%emt 0:02:30]} Bh6 {[%emt 0:05:30]} 18. h4 {[%emt 0:04:30]} Qc8 {[%emt 0:02:30]} 19. e6 {[%emt 0:00:30]} fxe6 {[%emt 0:02:30]} 20. Nxe6 {[%emt 0:00:30]} Ndf6 $1 {[%emt 0:01:30]} 21. f5 {[%emt 0:10:30]} Bxe3 {[%emt 0:31:30]} 22. Qxe3 {[%emt 0:00:30]} Nxg4 {[%emt 0:00:30]} 23. Qg5 $17 {[%emt 0:28:30]} Qxe6 {[%emt 1:07:30]} 24. fxe6 {[%emt 0:00:30]} Nxf2 {[%emt 0:00:30]} 25. Qd5 {[%emt 0:00:30]} Nxe4 {[%emt 0:00:30]} 26. Qxe4 {[%emt 0:00:30]} bxc3 {[%emt 0:00:30]} 27. bxc3 {[%emt 0:00:30]} Rb2 {[%emt 0:00:30]} 28. Nf4 {[%emt 0:00:30]} Nf6 {[%emt 0:00:30]} 29. Qf3 {[%emt 0:00:30]} Kg8 {[%emt 0:00:30]} 30. Qg3 {[%emt 0:00:30]} cxd4 {[%emt 0:00:30]} 31. cxd4 {[%emt 0:00:30]} Rc8 {[%emt 0:00:30]} 32. h5 {[%emt 0:00:30]} g5 {[%emt 0:00:30]} 33. Qxg5+ {[%emt 0:00:30]} Kh8 {[%emt 0:00:30]} 34. Qh6 {[%emt 0:00:30]} Kg8 {[%emt 0:00:30]} 35. Qg5+ {[%emt 0:00:30]} Kh8 {[%emt 0:00:30]} 36. Qh6 {[%emt 0:00:30]} Bd3 {[%emt 0:00:30]} 37. Nxd3 {[%emt 0:00:30]} Rg8+ {[%emt 0:00:30]} 38. Kf1 {[%emt 0:00:30]} Ng4 {[%emt 0:00:30]} 39. Nxb2 {[%emt 0:00:30]} Nxh6 {[%emt 0:00:30]} 40. Nc4 {[%emt 0:00:30]} Rg5 {[%emt 0:00:30]} 41. Rb1 {[%emt 0:30:30]} Kg7 {[%emt 0:30:30]} 42. a4 {[%emt 0:00:30]} Rd5 {[%emt 0:00:30]} 43. Rb5 {[%emt 0:01:30]} Rxd4 {[%emt 0:04:30]} 44. Nxa5 {[%emt 0:00:30]} Rxa4 {[%emt 0:00:30]} 45. Nc6 {[%emt 0:00:30]} Kf6 {[%emt 0:00:30]} 46. Rb7 {[%emt 0:00:00]} Nf5 {[%emt 0:00:00]} 47. Nd8 {[%emt 0:02:00]} Ra8 {[%emt 0:01:00]} 48. Rd7 {[%emt 0:00:30]} Ng3+ {[%emt 0:00:30]} 0-1

[Event "World Junior U20 Open 2018"]
[Site "Gebze"]
[Date "2018.09.10"]
[Round "6.52"]
[White "Bashirli, Nail"]
[Black "Gunduz, Umut Erdem"]
[Result "1-0"]
[ECO "C54"]
[WhiteElo "2354"]
[BlackElo "2119"]
[Annotator "NA"]
[PlyCount "79"]
[EventDate "2018.09.05"]
[EventType "swiss"]
[EventCountry "TUR"]
[SourceTitle "playchess.com"]
[Source "ChessBase"]
[SourceQuality "1"]
[TimeControl "40/5400+30:1800+30"]

1. e4 {[%emt 0:02:30]} e5 {[%emt 0:00:30]} 2. Nf3 {[%emt 0:00:30]} Nc6 {[%emt 0:00:30]} 3. d4 {[%emt 0:00:00]} exd4 {[%emt 0:00:00]} 4. Bc4 {[%emt 0:00:00]} Bc5 {[%emt 0:09:00]} 5. c3 {[%emt 0:01:30]} Nf6 {[%emt 0:01:30]} 6. e5 {[%emt 0:01:30]} d5 {[%emt 0:00:30]} 7. Bb5 {[%emt 0:01:30]} Ne4 {[%emt 0:00:30]} 8. Nxd4 {[%emt 0:06:30]} O-O {[%emt 0:05:30]} 9. Bxc6 {[%emt 0:01:30]} bxc6 {[%emt 0:00:30]} 10. O-O {[%emt 0:00:30]} f6 {[%emt 0:20:30]} 11. e6 {[%emt 0:27:30]} Qd6 {[%emt 0:13:30]} 12. Nd2 {[%emt 0:04:30]} Nxd2 {[%emt 0:04:30]} 13. Bxd2 {[%emt 0:02:30]} Bxe6 {[%emt 0:01:30]} 14. Bf4 {[%emt 0:02:30]} Qd7 {[%emt 0:01:30]} 15. Qa4 {[%emt 1:06:30]} Bb6 $11 {[%emt 1:16:30]} 16. Qxc6 {[%emt 0:00:30]} Rfe8 {[%emt 0:00:30]} 17. Rfe1 {[%emt 0:00:30]} Qxc6 {[%emt 0:00:30]} 18. Nxc6 {[%emt 0:00:30]} Kf7 {[%emt 0:00:30]} 19. a4 {[%emt 0:03:30]} Bd7 {[%emt 0:08:25]} 20. Nb4 {[%emt 0:03:30]} g5 {[%emt 0:03:19]} 21. Be3 {[%emt 0:05:56]} c6 {[%emt 0:04:34]} 22. a5 {[%emt 0:05:57]} Bc7 {[%emt 0:03:16]} 23. Na6 {[%emt 0:00:14]} Bd6 {[%emt 0:02:36]} 24. Bc5 {[%emt 0:00:24]} Be5 {[%emt 0:01:15]} 25. Bd4 {[%emt 0:00:04]} Bd6 {[%emt 0:00:29]} 26. Rxe8 {[%emt 0:01:46]} Bxe8 {[%emt 0:00:32]} 27. Re1 {[%emt 0:00:34]} Bd7 {[%emt 0:00:24]} 28. Nc5 {[%emt 0:00:20]} Bxc5 {[%emt 0:00:35]} 29. Bxc5 {[%emt 0:00:43]} Be6 {[%emt 0:00:04]} 30. a6 {[%emt 0:00:10]} Rd8 {[%emt 0:00:30]} 31. Ra1 {[%emt 0:00:30]} Rd7 {[%emt 0:00:54]} 32. Kf1 {[%emt 0:03:10]} Bf5 {[%emt 0:00:30]} 33. Ke2 {[%emt 0:00:30]} Bc2 {[%emt 0:00:30]} 34. Ra3 {[%emt 0:00:30]} Ke6 {[%emt 0:00:30]} 35. Kd2 {[%emt 0:00:08]} Bf5 {[%emt 0:00:33]} 36. Rb3 {[%emt 0:00:30]} Rc7 {[%emt 0:00:30]} 37. Rb7 {[%emt 0:00:30]} Kd7 {[%emt 0:00:30]} 38. Bxa7 {[%emt 0:00:30]} Kc8 {[%emt 0:00:30]} 39. Rb8+ {[%emt 0:00:30]} Kd7 {[%emt 0:00:30]} 40. Bb6 {[%emt 0:00:30]} 1-0